bitfinex-derivatives/quotes_SOLF0:USTF0_20240925
["timestamp","ask_amount","ask_price","bid_price","bid_amount"]
[1727261140121,11.5092,150.18,150.14,8.18]
[1727261140331,11.5092,150.18,150.15,6.35942049]
[1727261140631,11.5092,150.18,150.14,8.18]
[1727261140818,11.5092,150.18,150.15,6.35953341]
[1727261141020,11.5092,150.18,150.14,8.18]
[1727261141223,11.5092,150.18,150.15,6.36010959]
[1727261141426,11.5092,150.18,150.14,8.18]
[1727261141626,11.5092,150.18,150.15,6.35986374]
[1727261141823,0.02,150.19,150.13,88.85316815]
[1727261142028,8.18,150.17,150.14,6.35995549]
[1727261142222,8.18,150.17,150.15,6.36071736]
[1727261142430,8.18,150.17,150.13,3.3301]
[1727261142634,8.18,150.17,150.14,6.35995852]
[1727261142828,8.18,150.17,150.13,8.18]
[1727261143030,8.18,150.17,150.14,9.6899993]
[1727261143231,8.18,150.17,150.14,3.33]
[1727261143826,11.5093,150.17,150.14,3.33]
[1727261145335,11.5093,150.17,150.15,16.3311616]
[1727261145636,11.5093,150.17,150.16,6.281216]
[1727261146235,3.3293,150.17,150.16,6.281216]
[1727261146433,0.02,150.19,150.16,6.281216]
[1727261146634,0.02,150.19,150.17,6.281216]
[1727261146832,8.2,150.19,150.15,11.5097]
[1727261147033,8.2,150.19,150.16,6.27875374]
[1727261147334,8.2,150.19,150.17,6.27867832]
[1727261147534,8.2,150.19,150.15,11.5097]
[1727261147828,3.3291,150.18,150.16,6.27834668]
[1727261148030,3.3291,150.18,150.17,6.27834668]
[1727261148229,3.3291,150.18,150.15,3.3297]
[1727261148424,3.3291,150.18,150.16,6.27791932]
[1727261148742,3.3291,150.18,150.15,3.3297]
[1727261148930,3.3291,150.18,150.16,6.27802632]
[1727261149128,3.3291,150.18,150.15,3.3297]
[1727261149331,3.3291,150.18,150.16,6.27800779]
[1727261149530,3.3291,150.18,150.15,3.3297]
[1727261149736,3.3291,150.18,150.16,6.27776663]
[1727261150038,3.3291,150.18,150.17,6.27776663]
[1727261150232,0.02,150.19,150.17,6.27776663]
[1727261150438,0.02,150.19,150.16,8.18]
[1727261150933,0.02,150.19,150.17,9.60643674]
[1727261151236,0.02,150.19,150.17,3.3291]
[1727261151930,0.02,150.19,150.18,3.3291]
[1727261152133,0.02,150.19,150.18,9.60499996]
[1727261152331,0.02,150.19,150.18,19.64430172]
[1727261152527,0.02,150.19,150.18,9.60499996]
[1727261153134,0.02,150.19,150.18,19.6451138]
[1727261153746,0.02,150.19,150.18,3.3291]
[1727261154135,0.02,150.19,150.18,19.64342712]
[1727261154536,0.02,150.19,150.18,9.6038412]
[1727261157139,0.02,150.19,150.18,3.3291]
[1727261157337,0.02,150.19,150.18,9.60370805]
[1727261157737,0.02,150.19,150.18,9.60363843]
[1727261160050,0.02,150.19,150.18,6.27453843]
[1727261160553,0.02,150.19,150.16,8.18]
[1727261161652,0.02,150.19,150.17,3.3292]
[1727261165661,0.02,150.19,150.18,8.18]
[1727261171556,0.02,150.19,150.18,11.5091]
[1727261174862,0.02,150.19,150.18,17.78359014]
[1727261175463,0.02,150.19,150.18,27.82094132]
[1727261176667,0.02,150.19,150.18,18.78359014]
[1727261177464,0.02,150.19,150.18,18.78204526]
[1727261178373,0.02,150.19,150.18,18.78183428]
[1727261178971,0.02,150.19,150.18,12.5091]
[1727261180367,0.02,150.19,150.18,18.78321699]
[1727261180771,0.02,150.19,150.18,7.27411699]
[1727261181075,8.2,150.19,150.18,1.0]
[1727261181268,8.2,150.19,150.17,1.0]
[1727261181789,3.3291,150.18,150.17,1.0]
[1727261186672,3.3291,150.18,150.15,3.3296]
[1727261187875,3.3291,150.18,150.17,1.0]
[1727261191674,11.509,150.19,150.17,1.0]
[1727261194178,11.5091,150.18,150.17,1.0]
[1727261216495,3.3291,150.18,150.17,1.0]
[1727261216698,11.5091,150.18,150.17,1.0]
[1727261224199,8.18,150.18,150.17,4.3293]
[1727261224399,8.18,150.18,150.17,1.0]
[1727261225801,11.5091,150.18,150.17,1.0]
[1727261230403,12.53135833,150.18,150.17,1.0]
[1727261232209,12.53142059,150.18,150.17,1.0]
[1727261232709,11.5091,150.18,150.17,1.0]
[1727261232910,12.53142059,150.18,150.17,1.0]
[1727261236213,11.5091,150.18,150.17,1.0]
[1727261236408,12.53142062,150.18,150.17,1.0]
[1727261240314,11.5091,150.18,150.17,1.0]
[1727261240507,12.53142061,150.18,150.17,1.0]
[1727261241211,9.20232061,150.18,150.08,1.3652]
[1727261241518,8.18,150.11,150.08,1.3652]
[1727261242106,3.331,150.1,150.08,1.3652]
[1727261242510,8.18,150.11,150.08,1.3652]
[1727261242710,11.5108,150.11,150.08,4.6964]
[1727261245517,3.3313,150.09,150.07,1.2987]
[1727261245820,8.18,150.09,150.06,88.87669609]
[1727261246418,11.5113,150.09,150.06,92.20839609]
[1727261247016,11.511,150.1,150.06,92.20839609]
[1727261247218,11.511,150.1,150.07,3.3315]
[1727261247643,3.3308,150.11,150.07,8.18]
[1727261248118,3.3308,150.11,150.08,3.3313]
[1727261248620,3.331,150.1,150.07,8.18]
[1727261248819,3.331,150.1,150.07,11.5114]
[1727261251917,3.331,150.1,150.07,3.3314]
[1727261252324,11.5111,150.09,150.03,9.89482555]
[1727261252622,11.5111,150.09,150.04,14.36451326]
[1727261252816,11.5111,150.09,150.04,8.18]
[1727261253017,11.5111,150.09,150.07,3.3316]
[1727261253827,11.5111,150.09,150.06,3.3317]
[1727261255725,3.3314,150.08,150.06,3.3317]
[1727261260831,1.3716,150.14,150.07,3.3314]
[1727261261028,8.18,150.11,150.07,3.3314]
[1727261261229,8.18,150.1,150.07,3.3314]
[1727261261428,8.18,150.1,150.06,177.79011102]
[1727261261936,8.18,150.1,150.06,181.12181102]
[1727261261937,3.3311,150.09,150.06,181.12181102]
[1727261262835,8.18,150.1,150.06,177.79011102]
[1727261263236,3.3313,150.09,150.06,177.79011102]
[1727261263436,3.3313,150.09,150.06,181.12191102]
[1727261263738,3.3313,150.09,150.06,3.3318]
[1727261265840,3.3313,150.08,150.06,3.3318]
[1727261266737,3.3313,150.08,150.05,3.3319]
[1727261267439,3.3312,150.09,150.06,3.3317]
[1727261271542,8.18,150.1,150.05,8.18]
[1727261272344,3.3311,150.09,150.06,3.3317]
[1727261279351,3.3313,150.08,150.06,3.3317]
[1727261280151,3.3312,150.09,150.06,3.3317]
[1727261284257,3.3312,150.09,150.04,8.18]
[1727261284258,3.3315,150.08,150.05,3.3319]
[1727261285658,11.5115,150.08,150.05,3.3319]
[1727261286558,11.5115,150.08,150.05,11.5119]
[1727261290165,3.3315,150.08,150.06,3.3317]
[1727261290361,3.3312,150.09,150.06,3.3317]
[1727261292060,3.3314,150.08,150.06,3.3317]
[1727261294568,3.3312,150.09,150.06,3.3317]
[1727261298965,8.18,150.1,150.06,3.3317]
[1727261298966,3.3314,150.08,150.06,3.3317]
[1727261309570,3.3314,150.08,150.05,3.3319]
[1727261311977,3.3316,150.07,150.04,3.3321]
[1727261312281,3.3316,150.07,150.05,6.20699216]
[1727261312481,3.3316,150.07,150.04,3.3321]
[1727261312677,3.3316,150.07,150.05,6.20722884]
[1727261312880,3.3316,150.07,150.04,3.3321]
[1727261313082,3.3316,150.07,150.05,6.20722884]
[1727261313381,3.3316,150.07,150.04,3.3321]
[1727261313578,3.3316,150.07,150.05,6.20754431]
[1727261313774,3.3316,150.07,150.04,3.3321]
[1727261313975,3.3316,150.07,150.05,6.20838009]
[1727261314175,3.3316,150.07,150.04,3.3321]
[1727261314374,3.3316,150.07,150.05,6.20881813]
[1727261314684,8.18,150.08,150.04,3.3321]
[1727261314880,8.18,150.08,150.05,6.20885905]
[1727261315078,3.3317,150.07,150.04,3.3321]
[1727261315279,3.3317,150.07,150.05,6.20881813]
[1727261315484,3.3317,150.07,150.04,3.3321]
[1727261320288,3.3317,150.07,150.06,6.20983285]
[1727261322282,3.3317,150.07,150.04,3.3321]
[1727261322483,3.3317,150.07,150.05,16.14483863]
[1727261322682,3.3317,150.07,150.06,6.20953875]
[1727261325092,3.3317,150.07,150.06,6.2087336]
[1727261331694,8.18,150.08,150.06,6.2087336]
[1727261331895,8.18,150.08,150.05,3.332]
[1727261332088,8.18,150.08,150.06,6.20991931]
[1727261332293,8.18,150.08,150.05,3.332]
[1727261332494,8.18,150.08,150.06,6.21015678]
[1727261332698,8.18,150.08,150.05,3.332]
[1727261332892,3.3316,150.07,150.05,3.332]
[1727261335203,3.3315,150.08,150.05,11.512]
[1727261335502,1.356,150.12,150.07,8.18]
[1727261335702,4.6866,150.12,150.09,8.18]
[1727261335898,4.6866,150.12,150.09,11.511]
[1727261336098,3.3307,150.11,150.08,8.18]
[1727261336294,8.18,150.11,150.07,8.18]
[1727261336497,8.18,150.1,150.02,177.8485983]
[1727261336698,11.5115,150.08,150.03,31.10703303]
[1727261336899,11.5115,150.08,150.04,16.14175919]
[1727261337197,11.5115,150.08,150.05,19.47365919]
[1727261337499,3.3315,150.08,150.06,6.20836892]
[1727261337700,3.3315,150.08,150.05,3.3319]
[1727261338097,3.3315,150.08,150.06,6.20975935]
[1727261338400,8.18,150.08,150.02,177.8485983]
[1727261338599,8.18,150.07,150.03,16.14879299]
[1727261338800,11.512,150.05,150.04,6.21107423]
[1727261339008,3.332,150.05,150.02,177.8485983]
[1727261339303,8.18,150.06,150.03,6.21274234]
[1727261339499,11.5119,150.06,150.03,6.21274234]
[1727261339698,8.18,150.06,150.02,181.1810983]
[1727261339896,1.3167,150.09,150.03,6.20971058]
[1727261340207,3.3318,150.06,150.03,3.3324]
[1727261340401,3.3318,150.06,150.04,6.20926508]
[1727261340597,3.3318,150.06,150.03,3.3324]
[1727261340798,3.3318,150.06,150.04,6.20881436]
[1727261340996,3.3318,150.06,150.03,3.3324]
[1727261341201,3.3318,150.06,150.04,6.20888745]
[1727261341705,3.3318,150.06,150.03,3.3324]
[1727261341903,3.3318,150.06,150.04,6.20909326]
[1727261342106,3.3318,150.06,150.03,3.3324]
[1727261342312,3.3318,150.06,150.04,6.20868358]
[1727261342606,3.3318,150.06,150.03,3.3324]
[1727261342906,3.3318,150.06,150.04,6.20917328]
[1727261343105,11.5117,150.07,150.03,3.3324]
[1727261343300,11.5117,150.07,150.04,6.20892032]
[1727261343509,11.5117,150.07,150.03,3.3324]
[1727261343803,11.5117,150.07,150.04,6.20891579]
[1727261344004,11.5117,150.07,150.03,3.3324]
[1727261344305,11.5117,150.07,150.04,6.20844242]
[1727261344505,11.5117,150.07,150.03,3.3324]
[1727261344706,3.3317,150.07,150.04,9.54072949]
[1727261344906,3.3317,150.07,150.05,6.20852949]
[1727261345204,3.3317,150.07,150.04,3.3322]
[1727261345409,3.3317,150.07,150.05,6.20741421]
[1727261345707,3.3317,150.07,150.04,3.3322]
[1727261345909,4.6516,150.07,150.05,6.20694685]
[1727261346211,12.8316,150.07,150.04,3.3322]
[1727261348007,1.3199,150.07,150.05,3.332]
[1727261348905,139.46004655,150.11,150.02,177.8485983]
[1727261348906,139.46004655,150.11,150.06,8.18]
[1727261349112,139.46004655,150.11,150.07,8.18]
[1727261350108,142.79084655,150.11,150.08,3.3313]
[1727261351911,139.46004655,150.11,150.09,3.331]
[1727261353103,142.79074655,150.11,150.09,3.331]
[1727261353499,142.79074655,150.11,150.08,11.5112]
[1727261354612,3.3307,150.11,150.08,11.5112]
[1727261354813,3.3307,150.11,150.09,3.331]
[1727261357215,8.18,150.13,150.09,3.331]
[1727261357216,3.3305,150.12,150.09,3.331]
[1727261358616,3.3307,150.11,150.09,3.331]
[1727261361323,3.3307,150.11,150.08,11.5113]
[1727261362716,3.3305,150.12,150.08,8.18]
[1727261362918,3.8907,150.16,150.1,8.18]
[1727261363120,1.02264462,150.15,150.12,8.18]
[1727261364019,3.3301,150.14,150.12,11.5103]
[1727261366117,3.3301,150.14,150.12,8.18]
[1727261367521,1.281,150.16,150.13,8.18]
[1727261368823,4.6106,150.16,150.14,3.33]
[1727261369517,1.281,150.16,150.15,3.3298]
[1727261369917,3.3294,150.17,150.15,3.3298]
[1727261369918,3.3292,150.18,150.15,3.3298]
[1727261371023,3.3292,150.18,150.03,13.42396234]
[1727261371024,3.329,150.19,150.16,8.18]
[1727261371219,1.3373,150.2,150.16,8.18]
[1727261371618,4.6661,150.2,150.17,3.3292]
[1727261371818,9.5173,150.2,150.14,8.18]
[1727261372222,3.3293,150.18,150.15,3.3297]
[1727261372416,9.5173,150.2,150.15,3.3297]
[1727261372617,1.02218567,150.19,150.15,3.3297]
[1727261372822,3.3293,150.18,150.15,3.3297]
[1727261373526,3.3294,150.17,150.14,3.3299]
[1727261374224,3.3297,150.16,150.13,3.3301]
[1727261374622,3.3297,150.16,150.13,11.5101]
[1727261375520,8.18,150.19,150.14,8.18]
[1727261375922,3.3293,150.18,150.15,3.3298]
[1727261376723,3.3294,150.17,150.15,3.3298]
[1727261377124,3.3294,150.17,150.14,3.3299]
[1727261377926,3.3294,150.17,150.15,3.3298]
[1727261378827,3.3294,150.17,150.14,3.3299]
[1727261380126,3.3294,150.17,150.13,8.18]
[1727261380727,3.3294,150.17,150.14,11.5099]
[1727261381129,11.5092,150.18,150.14,8.18]
[1727261381726,11.5092,150.18,150.15,3.3297]
[1727261382521,9.5173,150.2,150.17,3.3293]
[1727261382726,1.02218905,150.19,150.17,3.3293]
[1727261383026,1.02218905,150.19,150.14,8.18]
[1727261383228,3.3292,150.18,150.15,3.3297]
[1727261384423,3.3296,150.16,150.09,2.615]
[1727261384632,8.18,150.15,150.1,8.18]
[1727261385337,11.5099,150.15,150.12,3.3303]
[1727261387134,2.711,150.19,150.13,8.18]
[1727261387438,1.02227262,150.18,150.14,8.18]
[1727261390446,10.891,150.19,150.16,3.3295]
[1727261390636,1.02225104,150.18,150.16,3.3295]
[1727261391141,10.891,150.19,150.16,3.3295]
[1727261391335,1.02225034,150.18,150.16,3.3295]
[1727261391841,4.35135034,150.18,150.16,3.3295]
[1727261392037,3.3291,150.18,150.16,3.3295]
[1727261392738,1.02224756,150.17,150.16,3.3295]
[1727261393139,1.02224756,150.18,150.16,3.3295]
[1727261393337,6.04,150.19,150.16,3.3295]
[1727261393538,1.02220417,150.18,150.16,3.3295]
[1727261395941,1.02220417,150.18,150.14,8.18]
[1727261395942,1.02220417,150.18,150.17,3.3293]
[1727261396156,1.02220417,150.19,150.17,3.3293]
[1727261396346,1.02220417,150.18,150.17,3.3293]
[1727261396546,1.02220417,150.19,150.17,3.3293]
[1727261396950,1.02220417,150.19,150.09,2.615]
[1727261397149,1.02220417,150.19,150.16,8.18]
[1727261397351,4.35110417,150.19,150.16,3.3295]
[1727261397556,1.02210383,150.18,150.16,3.3295]
[1727261399150,1.02210383,150.18,150.17,3.3293]
[1727261399347,1.02210383,150.19,150.17,3.3293]
[1727261399546,1.02210383,150.18,150.17,3.3293]
[1727261399757,4.666,150.2,150.17,3.3293]
[1727261400456,3.329,150.19,150.16,11.5094]
[1727261400658,3.329,150.19,150.16,8.18]
[1727261401255,3.329,150.19,150.16,11.5095]
[1727261401461,9.5173,150.2,150.16,3.3295]
[1727261401462,3.3292,150.18,150.16,3.3295]
[1727261402553,3.329,150.19,150.16,3.3295]
[1727261413163,1.3373,150.2,150.18,8.18]
[1727261413369,1.3373,150.2,150.09,2.615]
[1727261413370,1.3373,150.2,150.19,8.18]
[1727261413573,10.9091,150.24,150.19,8.18]
[1727261413767,1.02205523,150.23,150.2,8.18]
[1727261413968,1.2968,150.28,150.21,8.18]
[1727261414270,8.18,150.26,150.21,8.18]
[1727261414471,3.3279,150.24,150.21,11.5084]
[1727261415671,3.3279,150.24,150.21,3.3284]
[1727261415972,8.18,150.24,150.2,11.5085]
[1727261416174,8.18,150.24,150.2,3.3285]
[1727261416766,3.328,150.23,150.2,3.3285]
[1727261417071,3.328,150.23,150.18,8.18]
[1727261417072,8.18,150.23,150.18,8.18]
[1727261417272,3.3284,150.22,150.18,8.18]
[1727261417569,3.3284,150.22,150.19,3.3288]
[1727261419975,2.662,150.28,150.2,8.18]
[1727261420178,8.18,150.26,150.22,8.18]
[1727261420379,2.662,150.28,150.23,8.18]
[1727261420578,3.3275,150.26,150.23,8.18]
[1727261421174,3.3276,150.25,150.23,8.18]
[1727261421477,2.662,150.28,150.21,8.18]
[1727261421674,9.20156655,150.27,150.21,8.18]
[1727261421875,8.18,150.27,150.21,8.18]
[1727261422076,1.0215762,150.26,150.21,8.18]
[1727261422276,3.3279,150.24,150.21,11.5083]
[1727261426780,3.3279,150.24,150.21,3.3283]
[1727261431391,2.662,150.28,150.21,8.18]
[1727261431581,9.20156238,150.27,150.23,8.18]
[1727261431780,8.18,150.27,150.23,8.18]
[1727261432088,1.02156747,150.26,150.23,8.18]
[1727261432492,3.3276,150.25,150.23,8.18]
[1727261432685,3.3276,150.25,150.23,11.508]
[1727261433386,3.3276,150.25,150.22,3.3282]
[1727261433682,3.3278,150.24,150.22,3.3282]
[1727261442598,3.3278,150.24,150.21,11.5083]
[1727261444394,3.3277,150.25,150.22,3.3281]
[1727261444600,2.662,150.28,150.22,8.18]
[1727261444897,1.02154475,150.27,150.22,8.18]
[1727261445101,3.3275,150.26,150.23,3.328]
[1727261452097,3.3276,150.25,150.23,3.328]
[1727261452794,1.02154962,150.24,150.23,3.328]
[1727261453304,1.02154962,150.25,150.23,3.328]
[1727261453697,3.3275,150.26,150.23,3.328]
[1727261453698,1.02155115,150.24,150.23,3.328]
[1727261453899,1.02154956,150.25,150.24,3.3278]
[1727261454095,19.99,150.41,150.24,8.18]
[1727261454300,1.02138138,150.29,150.26,8.18]
[1727261455798,4.34818138,150.29,150.27,3.3271]
[1727261456005,1.02138138,150.28,150.25,8.18]
[1727261456195,8.18,150.31,150.25,8.18]
[1727261456398,4.3481655,150.29,150.26,3.3273]
[1727261456598,1.0212655,150.28,150.26,3.3273]
[1727261457799,3.3269,150.29,150.26,3.3273]
[1727261457996,1.02122111,150.28,150.27,8.18]
[1727261459803,3.3269,150.29,150.27,8.18]
[1727261460308,72.97790585,150.3,150.28,8.18]
[1727261461005,3.3267,150.29,150.28,8.18]
[1727261461206,69.65130585,150.3,150.28,8.18]
[1727261461406,72.97790585,150.3,150.28,8.18]
[1727261461907,72.97790585,150.3,150.27,11.5071]
[1727261462805,1.0,150.28,150.26,3.3273]
[1727261463800,8.18,150.27,150.2,2.601]
[1727261464002,8.18,150.27,150.22,8.18]
[1727261464406,3.3277,150.25,150.22,11.5081]
[1727261465304,3.3277,150.25,150.22,3.3281]
[1727261465507,3.3278,150.24,150.21,11.5083]
[1727261466610,3.3277,150.25,150.22,3.3281]
[1727261470312,3.3278,150.24,150.22,3.3281]
[1727261471614,3.3277,150.25,150.22,3.3281]
[1727261472015,3.3278,150.24,150.21,11.5084]
[1727261474120,3.3278,150.24,150.21,3.3284]
[1727261474418,3.3278,150.24,150.22,8.18]
[1727261475408,1.0,150.25,150.22,8.18]
[1727261475409,4.3277,150.25,150.22,8.18]
[1727261476012,4.3277,150.25,150.22,11.5081]
[1727261476420,4.3277,150.25,150.23,3.328]
[1727261477719,1.0,150.25,150.23,11.508]
[1727261479518,1.0,150.25,150.24,11.5078]
[1727261483727,3.3273,150.27,150.24,11.5078]
[1727261483930,1.02144108,150.26,150.24,11.5078]
[1727261484132,3.3273,150.27,150.24,11.5078]
[1727261484829,1.0,150.25,150.24,11.5078]
[1727261487932,1.0,150.25,150.24,3.3278]
[1727261488132,3.3279,150.24,150.21,8.18]
[1727261488330,2.02144585,150.25,150.21,8.18]
[1727261488331,1.0,150.25,150.21,8.18]
[1727261488540,1.0,150.25,150.22,3.3282]
[1727261489435,1.0,150.25,150.24,8.18]
[1727261490238,1.0,150.25,150.24,11.5078]
[1727261492838,1.0,150.25,150.24,8.18]
[1727261494435,1.0,150.25,150.24,11.5078]
[1727261494938,5.6663,150.28,150.24,11.5078]
[1727261494939,4.6663,150.28,150.24,11.5078]
[1727261495534,3.3272,150.27,150.24,11.5078]
[1727261495939,1.0,150.25,150.24,11.5078]
[1727261501038,1.0,150.25,150.24,3.3278]
[1727261501240,1.0,150.25,150.24,11.5078]
[1727261505144,1.0,150.26,150.25,3.3276]
[1727261505336,3.3264,150.31,150.25,8.18]
[1727261505536,1.02124025,150.3,150.27,11.507]
[1727261505738,3.3264,150.31,150.27,11.507]
[1727261506035,4.34773916,150.3,150.27,11.507]
[1727261506336,3.3265,150.3,150.27,11.507]
[1727261507550,3.3268,150.29,150.26,3.3273]
[1727261509442,3.3268,150.29,150.26,11.5073]
[1727261509740,8.18,150.31,150.26,8.18]
[1727261510142,1.02122809,150.3,150.26,8.18]
[1727261510639,11.5064,150.31,150.27,3.327]
[1727261510839,1.02122254,150.3,150.27,3.327]
[1727261512047,1.02122254,150.3,150.28,3.3268]
[1727261512247,1.02122254,150.3,150.28,8.18]
[1727261512442,8.18,150.32,150.28,8.18]
[1727261512648,1.02122074,150.31,150.28,11.5068]
[1727261513547,4.34752074,150.31,150.28,11.5068]
[1727261513751,1.02122074,150.3,150.28,11.5068]
[1727261514063,3.3263,150.31,150.28,11.5068]
[1727261514253,1.02122071,150.3,150.28,11.5068]
[1727261514546,3.3261,150.32,150.29,3.3267]
[1727261514745,1.02119834,150.31,150.29,3.3267]
[1727261515150,4.34749834,150.31,150.29,3.3267]
[1727261515348,3.3263,150.31,150.29,3.3267]
[1727261519746,3.3269,150.28,150.26,3.3273]
[1727261519945,3.3269,150.28,150.21,1.3992]
[1727261519946,11.5069,150.28,150.21,1.3992]
[1727261520147,8.18,150.28,150.23,8.18]
[1727261520545,8.18,150.28,150.23,3.3279]
[1727261520956,1.02139241,150.27,150.19,88.8128112]
[1727261521268,9.20139241,150.26,150.22,11.5082]
[1727261521550,3.3278,150.24,150.2,3.3286]
[1727261521752,3.3278,150.24,150.19,88.8128112]
[1727261521753,8.18,150.24,150.19,88.8128112]
[1727261522058,1.02152634,150.23,150.19,88.8128112]
[1727261522760,8.18,150.22,150.19,88.8128112]
[1727261523059,4.35002634,150.21,150.19,88.8128112]
[1727261523253,4.35002634,150.21,150.17,11.5093]
[1727261523254,3.3285,150.21,150.17,11.5093]
[1727261523457,8.18,150.22,150.13,6.18860091]
[1727261523666,9.20171084,150.21,150.12,2.7081]
[1727261523858,11.5089,150.19,150.15,8.18]
[1727261524353,11.5089,150.19,150.15,11.5098]
[1727261524665,1.02192558,150.18,150.15,11.5098]
[1727261524955,11.5089,150.19,150.15,11.5098]
[1727261525154,1.02196837,150.18,150.15,11.5098]
[1727261526649,1.02196837,150.18,150.12,2.7081]
[1727261526650,1.02196837,150.18,150.16,11.5095]
[1727261526855,8.18,150.22,150.16,8.18]
[1727261527054,1.02191321,150.21,150.16,8.18]
[1727261527453,1.02191321,150.21,150.17,8.18]
[1727261527952,3.3286,150.21,150.17,11.5091]
[1727261528754,2.6291,150.24,150.12,91.55279492]
[1727261528957,8.18,150.19,150.12,90.18609492]
[1727261529156,8.18,150.18,150.12,88.84469492]
[1727261529361,8.18,150.18,150.12,97.02469492]
[1727261529656,3.3294,150.17,150.13,3.3301]
[1727261532560,11.5092,150.18,150.14,3.33]
[1727261536565,11.509,150.19,150.15,3.3298]
[1727261536864,8.18,150.19,150.15,3.3298]
[1727261537762,3.3293,150.18,150.15,3.3298]
[1727261537962,8.18,150.17,150.15,3.3298]
[1727261539466,8.18,150.17,150.14,3.3299]
[1727261544877,3.3293,150.18,150.14,3.3299]
[1727261545080,11.5093,150.18,150.15,3.3298]
[1727261550879,8.18,150.17,150.15,3.3298]
[1727261551082,11.5094,150.17,150.14,3.3299]
[1727261552987,11.5096,150.16,150.13,3.3302]
[1727261561385,8.18,150.16,150.12,88.84469492]
[1727261562494,8.18,150.16,150.13,3.33]
[1727261564394,8.18,150.16,150.12,88.84469492]
[1727261564395,8.18,150.16,150.14,3.33]
[1727261567397,8.18,150.15,150.06,2.6263]
[1727261567599,8.18,150.11,150.06,10.8063]
[1727261568098,8.18,150.11,150.1,3.3309]
[1727261568399,1.2773,150.16,150.1,3.3309]
[1727261568603,8.18,150.13,150.1,3.3309]
[1727261570799,11.5103,150.13,150.1,3.3309]
[1727261573503,8.18,150.13,150.1,3.3309]
[1727261574207,11.5102,150.13,150.1,3.3309]
[1727261574506,8.18,150.13,150.1,3.3309]
[1727261575405,11.5103,150.13,150.1,3.3309]
[1727261576213,8.18,150.11,150.06,8.18]
[1727261577402,11.5109,150.1,150.07,3.3314]
[1727261580311,8.18,150.1,150.07,3.3314]
[1727261580810,3.3306,150.12,150.08,3.3312]
[1727261581008,3.3306,150.12,150.06,8.18]
[1727261581207,8.18,150.11,150.06,8.18]
[1727261582807,8.18,150.11,150.09,3.3311]
[1727261584410,1.2773,150.16,150.11,3.3306]
[1727261584608,8.18,150.14,150.11,3.3306]
[1727261585514,8.18,150.14,150.12,3.3304]
[1727261586405,8.18,150.14,150.08,8.18]
[1727261586406,3.33,150.15,150.13,3.3302]
[1727261586608,8.18,150.14,150.13,3.3302]
[1727261590315,4.607,150.16,150.14,3.3299]
[1727261590522,8.18,150.15,150.14,3.3299]
[1727261590720,12.787,150.16,150.14,3.3299]
[1727261591513,1.2773,150.16,150.14,3.3299]
[1727261591712,9.4573,150.16,150.14,3.3299]
[1727261592424,9.4573,150.16,150.15,3.3298]
[1727261592718,9.4573,150.16,150.11,8.18]
[1727261593916,9.4573,150.16,150.14,3.3299]
[1727261594517,9.4573,150.16,150.11,8.18]
[1727261595823,9.4573,150.16,150.14,3.3299]
[1727261605635,3.3292,150.18,150.15,3.3296]
[1727261605832,1.02212692,150.17,150.15,3.3296]
[1727261606027,11.5092,150.18,150.15,3.3296]